[Event "WYCC 2018 G16"]
[Site "Halkidiki"]
[Date "2018.10.27"]
[Round "8"]
[White "Plaza Reino, Mercedes"]
[Black "Grigorieva, Yulia"]
[Result "0-1"]
[ECO "E70"]
[WhiteElo "1727"]
[BlackElo "2112"]
[Annotator "NA"]
[PlyCount "72"]
[EventDate "2018.10.20"]
[EventType "swiss"]
[EventCountry "GRE"]
[SourceTitle "playchess.com"]
[Source "ChessBase"]
[SourceQuality "1"]
[TimeControl "40/5400+30:1800+30"]

1. d4 {[%emt 0:00:00]} Nf6 {[%emt 0:00:00]} 2. c4 {[%emt 0:00:00]} g6 {[%emt 0:00:00]} 3. Nc3 {[%emt 0:00:00]} Bg7 {[%emt 0:00:00]} 4. e4 {[%emt 0:00:04]} d6 {[%emt 0:00:00]} 5. Bg5 {[%emt 0:00:19]} O-O {[%emt 0:02:59]} 6. f4 {[%emt 0:00:13]} c5 {[%emt 0:13:20]} 7. d5 {[%emt 0:01:01]} Na6 {[%emt 0:06:30]} 8. Qd2 {[%emt 0:03:14]} Nc7 {[%emt 0:02:29]} 9. Nf3 {[%emt 0:01:57]} Bg4 {[%emt 0:04:13]} 10. Be2 {[%emt 0:07:51]} a6 {[%emt 0:04:42]} 11. h3 {[%emt 0:15:47]} Bxf3 {[%emt 0:02:44]} 12. Bxf3 {[%emt 0:01:03]} b5 {[%emt 0:02:20]} 13. O-O {[%emt 0:07:55]} Nd7 {[%emt 0:09:30]} 14. e5 {[%emt 0:32:22]} f6 {[%emt 0:10:53]} 15. exd6 {[%emt 0:03:29]} exd6 {[%emt 0:00:32]} 16. Bh4 {[%emt 0:00:33]} bxc4 {[%emt 0:11:32]} 17. Rac1 {[%emt 0:05:12]} Nb6 {[%emt 0:03:51]} 18. Rfe1 {[%emt 0:05:32]} Re8 {[%emt 0:06:27]} 19. Rxe8+ {[%emt 0:05:05]} Qxe8 {[%emt 0:01:16]} 20. Ne4 {[%emt 0:01:20]} Qf8 {[%emt 0:01:28]} 21. Re1 {[%emt 0:01:15]} Re8 {[%emt 0:02:24]} 22. Bg3 {[%emt 0:01:40]} f5 {[%emt 0:03:20]} 23. Ng5 {[%emt 0:00:30]} Bd4+ {[%emt 0:01:40]} 24. Kh2 {[%emt 0:03:29]} Rxe1 {[%emt 0:02:51]} 25. Bxe1 {[%emt 0:01:03]} Qe7 {[%emt 0:01:50]} 26. Bf2 {[%emt 0:01:03]} Bxf2 {[%emt 0:02:30]} 27. Qxf2 {[%emt 0:00:02]} h6 {[%emt 0:01:37]} 28. Ne6 {[%emt 0:00:40]} Ncxd5 {[%emt 0:01:05]} 29. Qe2 {[%emt 0:01:13]} Kf7 {[%emt 0:00:39]} 30. Bxd5 {[%emt 0:00:34]} Nxd5 {[%emt 0:00:09]} 31. Nd4 {[%emt 0:00:32]} cxd4 {[%emt 0:00:16]} 32. Qxc4 {[%emt 0:00:26]} Qe4 {[%emt 0:00:29]} 33. Qxa6 {[%emt 0:00:27]} d3 {[%emt 0:01:26]} 34. Qa7+ {[%emt 0:00:34]} Ne7 {[%emt 0:00:15]} 35. Qc7 {[%emt 0:00:29]} Qxf4+ {[%emt 0:00:19]} 36. Kh1 {[%emt 0:00:11]} d2 {[%emt 0:00:16]} 0-1

[Event "WYCC 2018 G16"]
[Site "Halkidiki"]
[Date "2018.10.27"]
[Round "8"]
[White "Golsta, Ramona"]
[Black "Skaslien, Ingrid"]
[Result "1-0"]
[ECO "A46"]
[WhiteElo "1681"]
[BlackElo "1885"]
[Annotator "NA"]
[PlyCount "109"]
[EventDate "2018.10.20"]
[EventType "swiss"]
[EventCountry "GRE"]
[SourceTitle "playchess.com"]
[Source "ChessBase"]
[SourceQuality "1"]
[TimeControl "40/5400+30:1800+30"]

1. d4 {[%emt 0:00:00]} Nf6 {[%emt 0:00:00]} 2. Nf3 {[%emt 0:00:00]} e6 {[%emt 0:00:02]} 3. Bf4 {[%emt 0:00:00]} b6 {[%emt 0:02:49]} 4. e3 {[%emt 0:01:30]} Bb7 {[%emt 0:00:24]} 5. Bd3 {[%emt 0:00:49]} d6 {[%emt 0:03:52]} 6. O-O {[%emt 0:01:34]} Be7 {[%emt 0:00:38]} 7. h3 {[%emt 0:02:06]} O-O {[%emt 0:00:51]} 8. Nbd2 {[%emt 0:01:16]} c5 {[%emt 0:04:32]} 9. c3 {[%emt 0:00:29]} Nd5 {[%emt 0:13:31]} 10. Bg3 {[%emt 0:02:13]} f5 {[%emt 0:02:35]} 11. e4 {[%emt 0:08:17]} fxe4 {[%emt 0:07:43]} 12. Bxe4 {[%emt 0:03:13]} Nc6 {[%emt 0:01:45]} 13. Re1 {[%emt 0:05:28]} Qd7 {[%emt 0:06:36]} 14. Qe2 {[%emt 0:08:24]} Rae8 {[%emt 0:10:00]} 15. Rad1 {[%emt 0:07:23]} cxd4 {[%emt 0:02:58]} 16. Nxd4 {[%emt 0:04:58]} Nxd4 {[%emt 0:00:35]} 17. cxd4 {[%emt 0:00:01]} Bg5 {[%emt 0:03:05]} 18. Nc4 {[%emt 0:06:07]} Bf4 {[%emt 0:05:22]} 19. Qf3 {[%emt 0:07:47]} Rc8 {[%emt 0:11:40]} 20. b3 {[%emt 0:03:44]} Rce8 {[%emt 0:07:05]} 21. Qd3 {[%emt 0:13:20]} g6 {[%emt 0:03:58]} 22. Bf3 {[%emt 0:04:18]} Nb4 {[%emt 0:03:15]} 23. Qe2 {[%emt 0:01:12]} Bxg3 {[%emt 0:02:26]} 24. fxg3 {[%emt 0:00:17]} Ba6 {[%emt 0:02:42]} 25. Bg4 {[%emt 0:01:23]} d5 {[%emt 0:01:01]} 26. Bxe6+ {[%emt 0:07:59]} Rxe6 {[%emt 0:00:05]} 27. Qxe6+ {[%emt 0:00:08]} Qxe6 {[%emt 0:00:04]} 28. Rxe6 {[%emt 0:00:08]} dxc4 {[%emt 0:00:09]} 29. bxc4 {[%emt 0:00:28]} Bxc4 {[%emt 0:00:06]} 30. Re7 {[%emt 0:00:53]} Rf7 {[%emt 0:00:58]} 31. Rxf7 {[%emt 0:01:19]} Kxf7 {[%emt 0:00:08]} 32. a3 {[%emt 0:02:28]} Nd3 {[%emt 0:01:02]} 33. Rf1+ {[%emt 0:02:44]} Ke7 {[%emt 0:01:28]} 34. Rf3 {[%emt 0:01:44]} b5 {[%emt 0:02:25]} 35. Re3+ {[%emt 0:00:38]} Kd7 {[%emt 0:01:02]} 36. Kf1 {[%emt 0:01:26]} b4 {[%emt 0:00:34]} 37. axb4 {[%emt 0:00:32]} Nxb4+ {[%emt 0:00:01]} 38. Kf2 {[%emt 0:00:13]} Bd5 {[%emt 0:00:25]} 39. Ra3 {[%emt 0:02:04]} Nc6 {[%emt 0:00:07]} 40. g4 {[%emt 0:00:00]} Kc7 {[%emt 0:00:00]} 41. g3 {[%emt 0:04:03]} Kd6 {[%emt 0:11:35]} 42. Ke3 {[%emt 0:01:43]} Bg2 {[%emt 0:01:34]} 43. h4 {[%emt 0:01:15]} h5 {[%emt 0:01:38]} 44. Kf4 {[%emt 0:00:54]} hxg4 {[%emt 0:00:34]} 45. Kxg4 {[%emt 0:00:10]} Kd5 {[%emt 0:01:02]} 46. Ra2 {[%emt 0:01:18]} Be4 {[%emt 0:00:11]} 47. Kf4 {[%emt 0:00:36]} Kxd4 {[%emt 0:01:38]} 48. Ra4+ {[%emt 0:00:28]} Kd5 {[%emt 0:01:46]} 49. Rxe4 {[%emt 0:01:00]} a5 {[%emt 0:00:12]} 50. Ra4 {[%emt 0:00:32]} Kc5 {[%emt 0:00:43]} 51. Kg5 {[%emt 0:00:15]} Kb5 {[%emt 0:00:28]} 52. Ra1 {[%emt 0:00:44]} Kb4 {[%emt 0:00:11]} 53. Kxg6 {[%emt 0:00:13]} Kb3 {[%emt 0:00:13]} 54. h5 {[%emt 0:00:28]} Kb2 {[%emt 0:00:14]} 55. Rf1 {[%emt 0:00:40]} 1-0

[Event "WYCC 2018 G16"]
[Site "Halkidiki"]
[Date "2018.10.27"]
[Round "8"]
[White "Simkunaite, Gabija"]
[Black "Moerwald, Magdalena"]
[Result "1/2-1/2"]
[ECO "B13"]
[WhiteElo "1650"]
[BlackElo "1875"]
[Annotator "NA"]
[PlyCount "63"]
[EventDate "2018.10.20"]
[EventType "swiss"]
[EventCountry "GRE"]
[SourceTitle "playchess.com"]
[Source "ChessBase"]
[SourceQuality "1"]
[TimeControl "40/5400+30:1800+30"]

1. e4 {[%emt 0:00:00]} c6 {[%emt 0:00:00]} 2. d4 {[%emt 0:00:00]} d5 {[%emt 0:00:00]} 3. exd5 {[%emt 0:00:00]} cxd5 {[%emt 0:00:00]} 4. c4 {[%emt 0:00:04]} Nf6 {[%emt 0:00:01]} 5. Nc3 {[%emt 0:00:25]} Nc6 {[%emt 0:00:19]} 6. Bg5 {[%emt 0:00:43]} Qa5 {[%emt 0:08:29]} 7. Bxf6 {[%emt 0:05:36]} exf6 {[%emt 0:00:43]} 8. cxd5 {[%emt 0:01:48]} Bb4 {[%emt 0:01:37]} 9. Qe2+ {[%emt 0:11:25]} Be6 {[%emt 0:34:13]} 10. O-O-O {[%emt 0:09:38]} Bxc3 {[%emt 0:03:46]} 11. dxc6 {[%emt 0:01:29]} bxc6 {[%emt 0:12:07]} 12. Qa6 {[%emt 0:26:48]} O-O {[%emt 0:06:57]} 13. Qxa5 {[%emt 0:01:37]} Bxa5 {[%emt 0:00:10]} 14. b3 {[%emt 0:01:12]} Rfd8 {[%emt 0:02:35]} 15. Bd3 {[%emt 0:06:52]} Rac8 {[%emt 0:02:29]} 16. Ne2 {[%emt 0:04:16]} g6 {[%emt 0:04:13]} 17. Bc4 {[%emt 0:03:56]} Bb4 {[%emt 0:02:39]} 18. Bxe6 {[%emt 0:02:00]} fxe6 {[%emt 0:00:21]} 19. Kb2 {[%emt 0:00:15]} Ba5 {[%emt 0:04:04]} 20. a3 Kf7 {[%emt 0:01:35]} 21. b4 {[%emt 0:03:25]} Bb6 {[%emt 0:01:40]} 22. Kc3 {[%emt 0:00:43]} Rd6 {[%emt 0:03:21]} 23. Rd3 {[%emt 0:00:44]} Rcd8 {[%emt 0:00:16]} 24. Rhd1 {[%emt 0:00:06]} e5 {[%emt 0:01:44]} 25. dxe5 {[%emt 0:00:55]} Rxd3+ {[%emt 0:00:18]} 26. Rxd3 {[%emt 0:00:04]} Rxd3+ {[%emt 0:00:19]} 27. Kxd3 {[%emt 0:00:06]} fxe5 {[%emt 0:01:16]} 28. Ke4 {[%emt 0:02:42]} Ke6 {[%emt 0:01:01]} 29. f4 {[%emt 0:00:50]} exf4 {[%emt 0:01:51]} 30. Nxf4+ {[%emt 0:00:02]} Kf6 {[%emt 0:01:37]} 31. Nd3 {[%emt 0:01:32]} Ke6 {[%emt 0:01:16]} 32. Nf4+ {[%emt 0:00:37]} 1/2-1/2

[Event "WYCC 2018 G16"]
[Site "Halkidiki"]
[Date "2018.10.27"]
[Round "8"]
[White "Ortega Beltran, Ximena"]
[Black "Sosa Suarez, Carla Cristina"]
[Result "0-1"]
[ECO "A25"]
[WhiteElo "1628"]
[BlackElo "2025"]
[Annotator "NA"]
[PlyCount "100"]
[EventDate "2018.10.20"]
[EventType "swiss"]
[EventCountry "GRE"]
[SourceTitle "playchess.com"]
[Source "ChessBase"]
[SourceQuality "1"]
[TimeControl "40/5400+30:1800+30"]

1. c4 {[%emt 0:00:00]} e5 {[%emt 0:00:00]} 2. g3 {[%emt 0:00:00]} Nc6 {[%emt 0:00:00]} 3. Bg2 {[%emt 0:00:00]} g6 {[%emt 0:00:00]} 4. Nc3 {[%emt 0:00:31]} Bg7 {[%emt 0:00:24]} 5. Nf3 {[%emt 0:00:45]} d6 {[%emt 0:01:05]} 6. a3 {[%emt 0:00:58]} f5 {[%emt 0:01:23]} 7. e4 {[%emt 0:02:38]} Nf6 {[%emt 0:04:06]} 8. exf5 {[%emt 0:01:10]} Bxf5 {[%emt 0:01:24]} 9. O-O {[%emt 0:06:44]} O-O {[%emt 0:02:32]} 10. d3 {[%emt 0:04:04]} Qd7 {[%emt 0:04:30]} 11. Qb3 {[%emt 0:09:25]} Bxd3 {[%emt 0:16:04]} 12. c5+ {[%emt 0:05:19]} Kh8 {[%emt 0:01:05]} 13. Rd1 {[%emt 0:03:52]} e4 {[%emt 0:04:08]} 14. Ne1 {[%emt 0:05:44]} Nd4 {[%emt 0:01:42]} 15. Qa4 {[%emt 0:00:09]} Ne2+ {[%emt 0:01:19]} 16. Kh1 {[%emt 0:01:30]} Nxc3 {[%emt 0:06:12]} 17. Qxd7 {[%emt 0:01:41]} Nxd7 {[%emt 0:00:04]} 18. bxc3 {[%emt 0:01:29]} Bxc3 {[%emt 0:01:47]} 19. Ra2 {[%emt 0:26:10]} Nxc5 {[%emt 0:01:15]} 20. Nxd3 {[%emt 0:01:25]} Nxd3 {[%emt 0:02:33]} 21. Be3 {[%emt 0:00:54]} d5 {[%emt 0:03:00]} 22. Rc2 {[%emt 0:03:47]} Be5 {[%emt 0:08:50]} 23. Bf1 {[%emt 0:02:27]} d4 {[%emt 0:02:02]} 24. Bxd3 {[%emt 0:01:09]} exd3 {[%emt 0:00:21]} 25. Rc5 {[%emt 0:02:13]} dxe3 {[%emt 0:01:27]} 26. Rxe5 {[%emt 0:00:16]} exf2 {[%emt 0:00:13]} 27. Kg2 {[%emt 0:01:12]} Rad8 {[%emt 0:01:21]} 28. Kf1 {[%emt 0:01:43]} d2 {[%emt 0:01:27]} 29. Re2 {[%emt 0:00:28]} Rf7 {[%emt 0:04:21]} 30. Rdxd2 {[%emt 0:00:50]} Rxd2 {[%emt 0:00:06]} 31. Rxd2 {[%emt 0:00:09]} Kg7 {[%emt 0:00:56]} 32. a4 {[%emt 0:00:16]} a5 {[%emt 0:01:41]} 33. Rd5 {[%emt 0:02:03]} b6 {[%emt 0:00:08]} 34. Rb5 {[%emt 0:00:41]} Rf5 {[%emt 0:02:12]} 35. Rb2 {[%emt 0:00:19]} Kf6 {[%emt 0:00:48]} 36. Re2 {[%emt 0:00:13]} Re5 {[%emt 0:03:43]} 37. Rxf2+ {[%emt 0:00:56]} Rf5 {[%emt 0:00:13]} 38. Rxf5+ {[%emt 0:01:42]} Kxf5 {[%emt 0:00:04]} 39. Ke2 {[%emt 0:00:37]} Ke4 {[%emt 0:00:11]} 40. Kd2 {[%emt 0:00:00]} Kd4 {[%emt 0:00:00]} 41. Kc2 {[%emt 0:04:36]} Kc4 {[%emt 0:00:33]} 42. Kb2 {[%emt 0:00:22]} Kb4 {[%emt 0:00:12]} 43. Kb1 {[%emt 0:01:04]} Kxa4 {[%emt 0:00:09]} 44. Ka2 {[%emt 0:00:16]} c5 {[%emt 0:00:17]} 45. h4 {[%emt 0:00:16]} c4 {[%emt 0:00:12]} 46. g4 {[%emt 0:00:18]} c3 {[%emt 0:00:08]} 47. h5 {[%emt 0:00:19]} b5 {[%emt 0:00:09]} 48. hxg6 {[%emt 0:00:25]} hxg6 {[%emt 0:00:05]} 49. g5 {[%emt 0:00:12]} b4 {[%emt 0:00:04]} 50. Kb1 {[%emt 0:00:24]} b3 {[%emt 0:00:06]} 0-1

[Event "WYCC 2018 G16"]
[Site "Halkidiki"]
[Date "2018.10.27"]
[Round "8"]
[White "Cotun, Mihaela"]
[Black "Hoesley, Aria"]
[Result "0-1"]
[ECO "B22"]
[WhiteElo "1482"]
[BlackElo "1831"]
[Annotator "NA"]
[PlyCount "106"]
[EventDate "2018.10.20"]
[EventType "swiss"]
[EventCountry "GRE"]
[SourceTitle "playchess.com"]
[Source "ChessBase"]
[SourceQuality "1"]
[TimeControl "40/5400+30:1800+30"]

1. e4 {[%emt 0:00:00]} c5 {[%emt 0:00:11]} 2. c3 {[%emt 0:00:00]} d5 {[%emt 0:00:23]} 3. exd5 {[%emt 0:00:00]} Qxd5 {[%emt 0:00:17]} 4. d4 {[%emt 0:00:09]} Nf6 {[%emt 0:00:34]} 5. Nf3 {[%emt 0:00:41]} Bg4 {[%emt 0:01:01]} 6. Be2 {[%emt 0:01:16]} e6 {[%emt 0:00:59]} 7. O-O {[%emt 0:02:55]} Nc6 {[%emt 0:03:08]} 8. Be3 {[%emt 0:02:22]} cxd4 {[%emt 0:02:24]} 9. Nxd4 {[%emt 0:05:23]} Bxe2 {[%emt 0:13:04]} 10. Qxe2 {[%emt 0:01:25]} Nxd4 {[%emt 0:02:07]} 11. Bxd4 {[%emt 0:01:13]} Be7 {[%emt 0:04:30]} 12. Nd2 {[%emt 0:01:39]} O-O {[%emt 0:01:31]} 13. Nf3 {[%emt 0:01:54]} Rfd8 {[%emt 0:03:14]} 14. Rfe1 {[%emt 0:03:21]} b6 {[%emt 0:04:15]} 15. c4 {[%emt 0:08:11]} Qf5 {[%emt 0:02:59]} 16. a3 {[%emt 0:04:17]} Rac8 {[%emt 0:03:14]} 17. Rad1 {[%emt 0:04:23]} h6 {[%emt 0:08:08]} 18. h3 {[%emt 0:08:04]} Bc5 {[%emt 0:07:34]} 19. Bxc5 {[%emt 0:03:02]} Qxc5 {[%emt 0:04:25]} 20. Ne5 {[%emt 0:07:52]} Qc7 {[%emt 0:04:07]} 21. b3 {[%emt 0:05:20]} Rd6 {[%emt 0:04:07]} 22. Nd3 {[%emt 0:26:59]} Rcd8 {[%emt 0:05:36]} 23. Nb2 {[%emt 0:05:45]} Rd4 {[%emt 0:04:32]} 24. Qc2 {[%emt 0:04:02]} R8d7 {[%emt 0:03:27]} 25. Rxd4 {[%emt 0:01:09]} Rxd4 {[%emt 0:00:08]} 26. Rd1 {[%emt 0:00:50]} Qd6 {[%emt 0:00:54]} 27. a4 {[%emt 0:00:41]} a5 {[%emt 0:01:31]} 28. Rxd4 {[%emt 0:00:32]} Qxd4 {[%emt 0:00:03]} 29. Nd1 {[%emt 0:00:30]} Ne4 {[%emt 0:01:40]} 30. Ne3 {[%emt 0:00:29]} f5 {[%emt 0:05:11]} 31. Nf1 {[%emt 0:00:20]} g6 {[%emt 0:01:11]} 32. Qa2 {[%emt 0:00:42]} Kf7 {[%emt 0:00:33]} 33. Qc2 {[%emt 0:00:06]} g5 {[%emt 0:01:53]} 34. Qa2 {[%emt 0:00:53]} Qd3 {[%emt 0:02:30]} 35. Qb2 {[%emt 0:00:28]} Qc3 {[%emt 0:04:32]} 36. Qxc3 {[%emt 0:00:30]} Nxc3 {[%emt 0:00:02]} 37. f3 {[%emt 0:00:35]} Ne2+ {[%emt 0:00:45]} 38. Kf2 {[%emt 0:00:09]} Nd4 {[%emt 0:00:02]} 39. Nd2 {[%emt 0:00:09]} f4 {[%emt 0:01:00]} 40. g3 {[%emt 0:00:00]} e5 {[%emt 0:00:00]} 41. g4 {[%emt 0:14:48]} Ke6 {[%emt 0:07:12]} 42. Ke1 {[%emt 0:01:09]} Kd7 {[%emt 0:01:08]} 43. Kd1 {[%emt 0:02:18]} Kc6 {[%emt 0:00:29]} 44. Kc1 {[%emt 0:00:58]} Kc5 {[%emt 0:01:17]} 45. Kb1 {[%emt 0:03:52]} Ne6 {[%emt 0:04:48]} 46. Kb2 {[%emt 0:03:12]} Kd4 {[%emt 0:03:13]} 47. Kc2 {[%emt 0:00:52]} Ke3 {[%emt 0:01:18]} 48. Kc3 {[%emt 0:00:47]} Nc5 {[%emt 0:01:19]} 49. Kc2 {[%emt 0:02:25]} e4 {[%emt 0:06:47]} 50. fxe4 {[%emt 0:03:12]} Nxe4 {[%emt 0:00:19]} 51. Nxe4 {[%emt 0:01:33]} Kxe4 {[%emt 0:00:01]} 52. Kd2 {[%emt 0:00:48]} Kd4 {[%emt 0:00:13]} 53. Ke2 {[%emt 0:01:07] Kd5} Kc3 {[%emt 0:00:16]} 0-1

[Event "WYCC 2018 G16"]
[Site "Halkidiki"]
[Date "2018.10.28"]
[Round "9"]
[White "Muetsch, Annmarie"]
[Black "Solozhenkina, Elizaveta"]
[Result "1/2-1/2"]
[ECO "C03"]
[WhiteElo "2206"]
[BlackElo "2276"]
[Annotator "NA"]
[PlyCount "61"]
[EventDate "2018.10.20"]
[EventType "swiss"]
[EventCountry "GRE"]
[SourceTitle "playchess.com"]
[Source "ChessBase"]
[SourceQuality "1"]
[TimeControl "40/5400+30:1800+30"]

1. e4 {[%emt 0:00:00]} e6 {[%emt 0:00:00]} 2. d4 {[%emt 0:00:00]} d5 {[%emt 0:00:00]} 3. Nd2 {[%emt 0:00:00]} Be7 {[%emt 0:00:00]} 4. Ngf3 {[%emt 0:00:06]} Nf6 {[%emt 0:00:43]} 5. e5 {[%emt 0:00:49]} Nfd7 {[%emt 0:00:08]} 6. Bd3 {[%emt 0:03:46]} c5 {[%emt 0:00:08]} 7. c3 {[%emt 0:00:03]} Nc6 {[%emt 0:00:23]} 8. Qe2 {[%emt 0:12:20]} Qb6 {[%emt 0:14:02]} 9. Qe3 {[%emt 0:02:23]} g5 {[%emt 0:10:48]} 10. h3 {[%emt 0:09:58]} h5 {[%emt 0:03:34]} 11. Nf1 $15 {[%emt 0:10:48]} ({White should try} 11. Kf1 $11) 11... Rg8 {[%emt 0:09:33]} 12. g4 {[%emt 0:05:39]} h4 {[%emt 0:02:50]} 13. N1h2 {[%emt 0:01:35]} Nf8 {[%emt 0:07:49]} 14. O-O {[%emt 0:03:39]} cxd4 {[%emt 0:07:16]} 15. Nxd4 {[%emt 0:05:35]} Bd7 {[%emt 0:08:12]} 16. Nhf3 {[%emt 0:01:28]} Ng6 {[%emt 0:04:39]} 17. Re1 {[%emt 0:03:19]} Nf4 {[%emt 0:06:59]} 18. Bf1 {[%emt 0:00:17]} O-O-O {[%emt 0:01:26]} 19. b4 {[%emt 0:04:31]} f6 {[%emt 0:03:24]} 20. Nxc6 {[%emt 0:05:09]} Bxc6 {[%emt 0:04:41]} 21. Qxb6 {[%emt 0:01:32]} axb6 {[%emt 0:00:06]} 22. Be3 {[%emt 0:04:00]} fxe5 {[%emt 0:02:35]} 23. Nxe5 {[%emt 0:00:45]} d4 {[%emt 0:04:39]} 24. Bxd4 {[%emt 0:03:27]} Bxb4 {[%emt 0:00:55]} 25. Bxb6 {[%emt 0:11:21]} Bxc3 {[%emt 0:00:42]} 26. Nxc6 {[%emt 0:00:47]} bxc6 {[%emt 0:02:15]} 27. Ba6+ {[%emt 0:00:14]} Kb8 {[%emt 0:00:33]} 28. Rab1 {[%emt 0:04:32]} Bxe1 {[%emt 0:00:52]} 29. Bc5+ {[%emt 0:03:25]} Ka8 {[%emt 0:01:14]} 30. Bb7+ {[%emt 0:00:06]} Kb8 {[%emt 0:00:04]} 31. Ba6+ {[%emt 0:00:09]} 1/2-1/2

[Event "WYCC 2018 G16"]
[Site "Halkidiki"]
[Date "2018.10.28"]
[Round "9"]
[White "Beydullayeva, Govhar"]
[Black "Maltsevskaya, Aleksandra"]
[Result "1/2-1/2"]
[ECO "A06"]
[WhiteElo "2202"]
[BlackElo "2290"]
[Annotator "NA"]
[PlyCount "93"]
[EventDate "2018.10.20"]
[EventType "swiss"]
[EventCountry "GRE"]
[SourceTitle "playchess.com"]
[Source "ChessBase"]
[SourceQuality "1"]
[TimeControl "40/5400+30:1800+30"]

1. Nf3 {[%emt 0:00:00]} d5 {[%emt 0:00:00]} 2. g3 {[%emt 0:00:00]} c6 {[%emt 0:00:01]} 3. Bg2 {[%emt 0:00:02]} Bg4 {[%emt 0:00:08]} 4. c4 {[%emt 0:00:16]} e6 {[%emt 0:02:47]} 5. cxd5 {[%emt 0:00:45]} Bxf3 {[%emt 0:00:19]} 6. Bxf3 {[%emt 0:00:14]} cxd5 {[%emt 0:00:06]} 7. O-O {[%emt 0:16:38]} Nf6 {[%emt 0:00:08]} 8. b3 {[%emt 0:05:53]} Nc6 {[%emt 0:00:45]} 9. Bb2 {[%emt 0:00:16]} Be7 {[%emt 0:01:25]} 10. d3 {[%emt 0:02:38]} O-O {[%emt 0:00:08]} 11. Nd2 {[%emt 0:03:43]} Rc8 {[%emt 0:02:04]} 12. a3 {[%emt 0:08:26]} Nd7 {[%emt 0:05:08]} 13. e3 {[%emt 0:09:04]} Nc5 $11 {[%emt 0:20:44]} 14. Be2 {[%emt 0:01:44]} Bf6 {[%emt 0:10:25]} 15. Bxf6 {[%emt 0:02:59]} Qxf6 {[%emt 0:00:08]} 16. d4 {[%emt 0:00:17]} Ne4 {[%emt 0:03:48]} 17. Nxe4 {[%emt 0:19:40]} dxe4 {[%emt 0:00:07]} 18. Qb1 {[%emt 0:10:56]} Qg6 {[%emt 0:00:58]} 19. b4 {[%emt 0:02:55]} Ne7 {[%emt 0:03:30]} 20. Rc1 {[%emt 0:02:39]} h5 {[%emt 0:07:48]} 21. Qb2 {[%emt 0:04:18]} Rxc1+ {[%emt 0:17:50]} 22. Rxc1 {[%emt 0:00:06]} Nd5 {[%emt 0:00:04]} 23. Rc5 {[%emt 0:01:17]} b6 {[%emt 0:02:31]} 24. Rc6 {[%emt 0:00:33]} h4 {[%emt 0:02:02]} 25. Qc1 {[%emt 0:00:18]} Qg5 {[%emt 0:07:41]} 26. Qc2 {[%emt 0:02:40]} Qf5 {[%emt 0:04:07]} 27. Rc8 {[%emt 0:01:47]} Rxc8 {[%emt 0:01:02]} 28. Qxc8+ {[%emt 0:00:02]} Kh7 {[%emt 0:00:06]} 29. Bd1 {[%emt 0:02:59]} Nf6 {[%emt 0:05:22]} 30. Qc7 {[%emt 0:00:55]} Qd5 {[%emt 0:00:19]} 31. Qc2 {[%emt 0:00:40]} a5 {[%emt 0:00:07]} 32. Be2 {[%emt 0:00:34]} axb4 33. axb4 {[%emt 0:00:00]} Qd6 {[%emt 0:02:02]} 34. b5 {[%emt 0:00:15]} g6 {[%emt 0:01:28]} 35. gxh4 {[%emt 0:00:15]} Kg7 {[%emt 0:01:23]} 36. Kg2 {[%emt 0:00:22]} Qb4 {[%emt 0:00:12]} 37. Kf1 {[%emt 0:01:11]} Qd6 {[%emt 0:00:46]} 38. Kg2 {[%emt 0:00:04]} Qb4 {[%emt 0:00:04]} 39. Kf1 {[%emt 0:01:11]} Qd6 {[%emt 0:00:11]} 40. Kg1 {[%emt 0:00:00]} Qb4 {[%emt 0:00:00]} 41. Qc7 {[%emt 0:12:46]} Qb1+ {[%emt 0:05:10]} 42. Kg2 {[%emt 0:02:59]} Nd5 {[%emt 0:04:25]} 43. Qe5+ {[%emt 0:00:04]} Kg8 {[%emt 0:00:03]} 44. Qb8+ {[%emt 0:03:40]} Kg7 {[%emt 0:00:05]} 45. Qe5+ {[%emt 0:00:08]} Kg8 {[%emt 0:00:07]} 46. Qb8+ {[%emt 0:08:11]} Kg7 {[%emt 0:00:15]} 47. Qe5+ {[%emt 0:00:03]} 1/2-1/2